bitfinex-derivatives/quotes_BTCF0:USTF0_20250313
["timestamp","ask_amount","ask_price","bid_price","bid_amount"]
[1741828686371,0.1047,83736.0,83717.0,0.0527]
[1741828686579,0.1194806,83719.0,83718.0,0.0564]
[1741828686785,0.0597393,83721.0,83717.0,0.0527]
[1741828686988,0.174782,83718.0,83717.0,0.0527]
[1741828687584,0.174782,83718.0,83717.0,0.0587]
[1741828688185,0.169782,83718.0,83717.0,0.0587]
[1741828688380,0.170782,83718.0,83717.0,0.0587]
[1741828688581,0.0513,83718.0,83709.0,0.00017913]
[1741828688875,0.1194934,83710.0,83709.0,0.00017913]
[1741828689090,0.12667534,83710.0,83709.0,0.00017913]
[1741828689589,0.1144934,83710.0,83709.0,0.00017913]
[1741828689888,0.2225934,83710.0,83709.0,0.05167913]
[1741828691489,0.2235934,83710.0,83709.0,0.05167913]
[1741828692188,0.1091,83710.0,83690.0,1.3882]
[1741828692380,0.1195063,83701.0,83696.0,0.1195128]
[1741828692586,0.1195063,83701.0,83693.0,0.0518]
[1741828692891,0.1195063,83701.0,83693.0,0.1713173]
[1741828693183,0.1195063,83701.0,83696.0,0.1195127]
[1741828693384,0.1195063,83701.0,83696.0,0.1195126]
[1741828693588,0.0513,83702.0,83697.0,0.1093]
[1741828693890,0.1195059,83702.0,83701.0,0.2288063]
[1741828694076,0.0597515,83704.0,83701.0,0.1093]
[1741828694276,0.1195049,83702.0,83701.0,0.1093]
[1741828695081,0.1195049,83702.0,83701.0,0.2308063]
[1741828696188,0.1195049,83702.0,83701.0,0.0565]
[1741828696391,0.23682322,83702.0,83701.0,0.0565]
[1741828696889,0.23682322,83702.0,83701.0,0.1123]
[1741828697492,0.23682322,83702.0,83701.0,0.002]
[1741828702493,0.1195163,83694.0,83693.0,0.1072]
[1741828702700,0.1195163,83694.0,83693.0,0.0558]
[1741828703303,0.06301832,83702.0,83675.0,0.12144]
[1741828703601,0.119542,83676.0,83675.0,0.2409834]
[1741828703798,0.119542,83676.0,83675.0,0.1195434]
[1741828704186,0.1195449,83675.0,83673.0,0.00903654]
[1741828704504,0.1195449,83675.0,83674.0,0.1195439]
[1741828704811,0.1195385,83680.0,83677.0,0.1195406]
[1741828705002,0.001,83676.0,83674.0,0.1793172]
[1741828705197,0.001,83676.0,83675.0,0.1195434]
[1741828705502,0.00017924,83682.0,83674.0,0.0597724]
[1741828705503,0.001,83675.0,83674.0,0.0597724]
[1741828706801,0.1145385,83679.0,83678.0,0.1195391]
[1741828709191,0.1195449,83674.0,83673.0,0.02068602]
[1741828709590,0.1195449,83674.0,83673.0,0.00014298]
[1741828710888,0.13118736,83674.0,83673.0,0.00214298]
[1741828712200,0.1195534,83668.0,83667.0,0.0017927]
[1741828712400,0.1195534,83670.0,83669.0,0.11955]
[1741828712601,0.1195534,83668.0,83667.0,0.1213456]
[1741828712904,0.1195534,83668.0,83667.0,0.0017927]
[1741828713299,0.0597758,83670.0,83666.0,0.00017924]
[1741828713497,0.1195549,83667.0,83666.0,0.00017924]
[1741828713690,0.1195549,83667.0,83666.0,0.11973554]
[1741828713896,0.1195549,83667.0,83666.0,0.00017924]
[1741828715000,0.1205549,83667.0,83666.0,0.00017924]
[1741828717599,0.1195549,83667.0,83666.0,0.00017924]
[1741828723806,0.1225549,83667.0,83666.0,0.00017924]
[1741828725104,0.003,83667.0,83645.0,0.3452667]
[1741828725304,0.1195849,83647.0,83646.0,0.1195834]
[1741828725803,0.1195849,83646.0,83645.0,0.2854738]
[1741828726706,0.13131221,83646.0,83645.0,0.2854738]
[1741828727321,0.01172731,83646.0,83640.0,0.00068]
[1741828727608,0.119592,83641.0,83640.0,0.00068]
[1741828727816,0.0597938,83645.0,83637.0,0.00011953]
[1741828728110,0.1195963,83638.0,83637.0,0.00011953]
[1741828729119,0.13128662,83638.0,83637.0,0.00011953]
[1741828729412,0.12028662,83638.0,83637.0,0.00011953]
[1741828730416,0.12128662,83638.0,83637.0,0.00011953]
[1741828730815,0.12328662,83638.0,83637.0,0.00011953]
[1741828731211,0.12628662,83638.0,83637.0,0.00011953]
[1741828732717,0.1196106,83628.0,83627.0,0.01221182]
[1741828732926,0.1196106,83628.0,83627.0,0.119612]
[1741828734007,0.1794329,83623.0,83622.0,0.119615]
[1741828734211,0.1794385,83619.0,83618.0,0.1196246]
[1741828734417,0.0598122,83619.0,83618.0,0.13167244]
[1741828735005,0.0598122,83619.0,83618.0,0.01204784]
[1741828735206,0.0598122,83619.0,83618.0,0.1196249]
[1741828736106,0.1196278,83617.0,83616.0,0.1196277]
[1741828736613,0.1196278,83617.0,83616.0,0.13147857]
[1741828737117,0.1086278,83617.0,83616.0,0.13147857]
[1741828737614,0.1096278,83617.0,83616.0,0.13147857]
[1741828738125,0.001,83617.0,83616.0,0.13147857]
[1741828738513,0.1206263,83617.0,83616.0,0.13147857]
[1741828740019,0.1196263,83617.0,83616.0,0.13147857]
[1741828740220,0.059812,83619.0,83618.0,0.1196249]
[1741828740918,0.12148,83641.0,83616.0,0.01185087]
[1741828741121,0.1794239,83629.0,83628.0,0.0598034]
[1741828742920,0.1196135,83626.0,83625.0,0.12148]
[1741828743424,0.1196135,83626.0,83625.0,0.2410949]
[1741828744223,0.1226135,83626.0,83625.0,0.3476949]
[1741828744419,0.1226135,83626.0,83625.0,0.0528]
[1741828745125,0.1226135,83626.0,83617.0,0.12148]
[1741828745126,0.0598108,83621.0,83617.0,0.12148]
[1741828745327,0.1196249,83618.0,83617.0,0.12148]
[1741828745510,0.13154321,83618.0,83617.0,0.2411063]
[1741828745715,0.1196249,83618.0,83617.0,0.2970063]
[1741828746122,0.1196249,83618.0,83617.0,0.1755263]
[1741828746518,0.1747249,83618.0,83617.0,0.2283263]
[1741828747214,0.1757249,83618.0,83617.0,0.1087]
[1741828748224,0.18744557,83618.0,83617.0,0.1087]
[1741828748426,0.1757249,83618.0,83617.0,0.2283263]
[1741828757818,0.1757249,83618.0,83617.0,0.1087]
[1741828758334,0.1757249,83618.0,83617.0,0.2283263]
[1741828760630,0.1206249,83618.0,83617.0,0.2283263]
[1741828761422,0.0017944,83640.0,83617.0,0.1087]
[1741828761625,0.1794231,83628.0,83627.0,0.1196049]
[1741828761823,0.1794231,83628.0,83627.0,0.2841049]
[1741828762231,0.0598065,83628.0,83627.0,0.2841049]
[1741828762727,0.005,83628.0,83627.0,0.4055449]
[1741828763114,0.1246106,83628.0,83627.0,0.4055449]
[1741828763614,0.005,83628.0,83627.0,0.4055449]
[1741828763820,0.009,83628.0,83627.0,0.4055449]
[1741828764016,0.00017935,83636.0,83627.0,0.4055449]
[1741828764232,0.0598004,83635.0,83634.0,0.1196006]
[1741828764425,0.1794055,83635.0,83634.0,0.23753264]
[1741828765628,0.1854055,83635.0,83634.0,0.23753264]
[1741828766425,0.1924055,83635.0,83634.0,0.23753264]
[1741828769432,0.2462055,83635.0,83634.0,0.35897264]
[1741828769831,0.3026055,83635.0,83634.0,0.35897264]
[1741828770025,0.2462055,83635.0,83634.0,0.35897264]
[1741828770430,0.1924055,83635.0,83634.0,0.35897264]
[1741828770630,0.013,83635.0,83634.0,0.35897264]
[1741828771540,0.1326006,83635.0,83634.0,0.35897264]
[1741828771741,0.1326006,83635.0,83634.0,0.41517264]
[1741828773239,0.1326006,83635.0,83634.0,0.2254006]
[1741828773429,0.2411006,83635.0,83634.0,0.2254006]
[1741828774529,0.2411006,83635.0,83604.0,0.0598224]
[1741828774733,0.1196178,83623.0,83621.0,0.1214]
[1741828774934,0.1196178,83623.0,83617.0,0.0516]
[1741828775249,0.1196178,83623.0,83612.0,0.0119146]
[1741828775541,0.1196178,83623.0,83614.0,0.0516]
[1741828775726,0.2285178,83623.0,83614.0,0.0516]
[1741828775927,0.1089,83623.0,83611.0,0.42991242]
[1741828776139,0.1196306,83614.0,83612.0,0.40932702]
[1741828776340,0.1196306,83614.0,83612.0,0.35836702]
[1741828776538,0.2272321,83613.0,83612.0,0.35772702]
[1741828776842,0.23930666,83613.0,83612.0,0.35772702]
[1741828777630,0.23930666,83613.0,83612.0,0.47736052]
[1741828777830,0.23930666,83613.0,83612.0,0.35772702]
[1741828778237,0.2272321,83613.0,83612.0,0.47736052]
[1741828778441,0.1720321,83613.0,83612.0,0.53216052]
[1741828778641,0.0524,83613.0,83612.0,0.53216052]
[1741828778838,0.0524,83613.0,83612.0,0.53616052]
[1741828779043,0.1720321,83613.0,83612.0,0.53616052]
[1741828779343,0.1720321,83613.0,83612.0,0.54802141]
[1741828779545,0.1196321,83613.0,83612.0,0.54802141]
[1741828779858,0.1196253,83620.0,83619.0,0.1196221]
[1741828780341,0.2235253,83620.0,83619.0,0.1196221]
[1741828780537,0.1196278,83616.0,83615.0,0.0537]
[1741828780744,0.1196278,83616.0,83615.0,0.1058]
[1741828780942,0.1196278,83616.0,83615.0,0.2254292]
[1741828781442,0.1726278,83616.0,83615.0,0.1058]
[1741828781850,0.1726278,83616.0,83615.0,0.2254292]
[1741828782449,0.1726278,83616.0,83615.0,0.1058]
[1741828783444,0.1726278,83616.0,83615.0,0.1068]
[1741828783835,0.1726278,83616.0,83615.0,0.2264292]
[1741828784342,0.1726278,83616.0,83615.0,0.1068]
[1741828784539,0.059811,83621.0,83620.0,0.1196221]
[1741828785332,0.059811,83621.0,83620.0,0.2276221]
[1741828785734,0.002,83621.0,83620.0,0.11994019]
[1741828786047,0.1226206,83621.0,83620.0,0.23956229]
[1741828786436,0.1226206,83621.0,83620.0,0.2276221]
[1741828786645,0.1226206,83621.0,83620.0,0.108]
[1741828786840,0.2815206,83621.0,83620.0,0.108]
[1741828788454,0.2815206,83621.0,83620.0,0.2276221]
[1741828788635,0.2279206,83621.0,83620.0,0.2276221]
[1741828789940,0.1226206,83621.0,83620.0,0.2276221]
[1741828790141,0.003,83621.0,83620.0,0.2788221]
[1741828790947,0.1226206,83621.0,83620.0,0.2788221]
[1741828792659,0.003,83621.0,83620.0,0.2788221]
[1741828792851,0.003,83621.0,83620.0,0.3388221]
[1741828793544,0.11978105,83636.0,83635.0,0.1196006]
[1741828793745,0.11978105,83636.0,83635.0,0.2410006]
[1741828794550,0.11978105,83636.0,83635.0,0.2923006]
[1741828794747,0.11978105,83636.0,83635.0,0.3458006]
[1741828794748,0.12578105,83636.0,83635.0,0.3458006]
[1741828795446,0.13278105,83636.0,83635.0,0.35787113]
[1741828797348,0.13278105,83636.0,83635.0,0.3458006]
[1741828799458,0.01317935,83636.0,83635.0,0.3458006]
[1741828800661,0.13277855,83636.0,83635.0,0.3458006]
[1741828802158,0.13277855,83636.0,83635.0,0.2262]
[1741828802368,0.13277855,83636.0,83635.0,0.1048]
[1741828802555,0.23937855,83636.0,83635.0,0.1048]
[1741828802763,0.23937855,83636.0,83635.0,0.0535]
[1741828802956,0.2513648,83636.0,83635.0,0.0535]
[1741828803464,0.2513648,83636.0,83635.0,0.108]
[1741828804566,0.01317935,83636.0,83635.0,0.2276006]
[1741828804863,0.01317935,83636.0,83635.0,0.2821006]
[1741828805852,0.22615086,83653.0,83635.0,0.4225]
[1741828806052,0.1195826,83648.0,83647.0,0.119582]
[1741828806258,0.1195826,83648.0,83647.0,0.240942]
[1741828806665,0.1732826,83648.0,83647.0,0.350242]
[1741828807156,0.1195826,83648.0,83647.0,0.350242]
[1741828807357,0.1265826,83648.0,83647.0,0.351242]
[1741828807960,0.007,83648.0,83647.0,0.351242]
[1741828808156,0.007,83648.0,83647.0,0.3631102]
[1741828808357,0.007,83653.0,83652.0,0.1195763]
[1741828808564,0.0511,83660.0,83655.0,0.119572]
[1741828808867,0.1195734,83654.0,83653.0,0.2300749]
[1741828809458,0.2236734,83654.0,83653.0,0.2300749]
[1741828809857,0.00017935,83656.0,83653.0,0.1105]
[1741828810063,0.11975105,83656.0,83655.0,0.119572]
[1741828810659,0.00017935,83656.0,83655.0,0.119572]
[1741828811370,0.00217935,83656.0,83655.0,0.119572]
[1741828811665,0.00917935,83656.0,83655.0,0.120572]
[1741828811857,0.00717935,83656.0,83655.0,0.121572]
[1741828812053,0.00717935,83656.0,83655.0,0.181572]
[1741828812257,0.00017935,83656.0,83655.0,0.120572]
[1741828812466,0.00017935,83656.0,83655.0,0.122572]
[1741828812670,0.17988922,83670.0,83655.0,0.2693]
[1741828812870,0.17988922,83670.0,83669.0,0.119552]
[1741828813073,0.17988922,83670.0,83669.0,0.240872]
[1741828814079,0.17988922,83670.0,83669.0,0.25269472]
[1741828814373,0.18188922,83670.0,83669.0,0.25269472]
[1741828814566,0.30143982,83670.0,83669.0,0.35579472]
[1741828814960,0.18188922,83670.0,83669.0,0.35579472]
[1741828815175,0.00379395,83670.0,83669.0,0.35579472]
[1741828815366,0.1195314,83684.0,83677.0,0.1195406]
[1741828815568,0.17809527,83685.0,83677.0,0.05]
[1741828815871,0.29762437,83685.0,83684.0,0.1195306]
[1741828816582,0.17809527,83685.0,83684.0,0.1195306]
[1741828816771,0.17809527,83685.0,83684.0,0.2255306]
[1741828817378,0.29762437,83685.0,83684.0,0.2255306]
[1741828818376,0.29762437,83685.0,83684.0,0.23772919]
[1741828818675,0.1195291,83685.0,83684.0,0.23772919]
[1741828819774,0.1235291,83685.0,83684.0,0.23872919]
[1741828821473,0.1235291,83685.0,83684.0,0.107]
[1741828821684,0.1235291,83685.0,83684.0,0.17628]
[1741828822276,0.1235291,83685.0,83684.0,0.001]
[1741828823677,0.1235291,83685.0,83684.0,0.1205306]
[1741828823866,0.1235291,83685.0,83684.0,0.2270306]
[1741828824263,0.1235291,83685.0,83684.0,0.1075]
[1741828824468,0.1235291,83685.0,83684.0,0.001]
[1741828825571,0.1235291,83685.0,83684.0,0.1205306]
[1741828826267,0.1235291,83685.0,83684.0,0.0575]
[1741828827285,0.1235291,83685.0,83684.0,0.1128]
[1741828831082,0.1235291,83685.0,83684.0,0.2323306]
[1741828831784,0.1783291,83685.0,83684.0,0.2323306]
[1741828833678,0.004,83685.0,83684.0,0.3535706]
[1741828834285,0.1235291,83685.0,83684.0,0.3535706]
[1741828836772,0.1235291,83685.0,83684.0,0.3657425]
[1741828837774,0.004,83685.0,83684.0,0.3657425]
[1741828838179,0.1235291,83685.0,83684.0,0.3657425]
[1741828840583,0.004,83685.0,83684.0,0.3657425]
[1741828841275,0.0597429,83716.0,83684.0,0.3657425]
[1741828841276,0.0565,83698.0,83692.0,0.1195191]
[1741828841473,0.0597564,83697.0,83692.0,0.1195191]
[1741828841681,0.1131564,83697.0,83692.0,0.1195191]
[1741828842382,0.1195157,83695.0,83692.0,0.1195191]
[1741828842581,0.1131564,83697.0,83692.0,0.1195191]
[1741828842878,0.12069705,83693.0,83692.0,0.1215191]
[1741828843991,0.22769705,83693.0,83692.0,0.1215191]
[1741828845491,0.17369705,83693.0,83692.0,0.1215191]
[1741828847791,0.12069705,83693.0,83692.0,0.1215191]
[1741828849193,0.12069705,83693.0,83692.0,0.1305576]
[1741828849592,0.22539705,83693.0,83692.0,0.1305576]
[1741828851199,0.17199705,83693.0,83692.0,0.1305576]
[1741828857702,0.05247935,83693.0,83692.0,0.1305576]
[1741828857898,0.17199705,83693.0,83692.0,0.1305576]
[1741828860409,0.17199705,83693.0,83692.0,0.0110385]
[1741828860703,0.17199705,83693.0,83692.0,0.002]
[1741828860909,0.18373441,83693.0,83692.0,0.002]
[1741828863495,0.33373441,83693.0,83692.0,1e-07]
[1741828863698,0.45489441,83693.0,83692.0,1e-07]
[1741828864304,0.1195491,83671.0,83670.0,0.05559264]
[1741828864506,0.1195491,83671.0,83670.0,0.17514324]
[1741828864702,0.1195491,83671.0,83670.0,0.23024324]
[1741828865410,0.2258491,83671.0,83670.0,0.23024324]
[1741828865710,0.1215491,83671.0,83670.0,0.23024324]
[1741828867302,0.002,83671.0,83670.0,0.23024324]
[1741828868209,0.1215491,83671.0,83670.0,0.23024324]
[1741828869005,0.1773491,83671.0,83670.0,0.23024324]
[1741828874423,0.1215491,83671.0,83670.0,0.23024324]
[1741828875907,0.1215491,83671.0,83670.0,0.11069264]
[1741828877516,0.1215491,83671.0,83670.0,0.05559264]
[1741828878517,0.1195606,83663.0,83662.0,0.00017924]
[1741828879017,0.1195691,83657.0,83656.0,0.21449425]
[1741828879520,0.1809436,83659.0,83648.0,0.21449425]
[1741828879521,0.1195806,83649.0,83648.0,0.21449425]
[1741828879719,0.1185806,83649.0,83648.0,0.21449425]
[1741828880023,0.1195863,83645.0,83644.0,0.2853405]
[1741828880821,0.1734863,83645.0,83644.0,0.2853405]
[1741828881218,0.1714863,83645.0,83644.0,0.2853405]
[1741828882022,0.18454897,83645.0,83644.0,0.2873405]
[1741828882222,0.18954897,83645.0,83644.0,0.2873405]
[1741828882616,0.33954897,83645.0,83644.0,0.2873405]
[1741828882930,0.34154897,83645.0,83644.0,0.2873405]
[1741828883313,0.119592,83641.0,83640.0,0.00017924]
[1741828883511,0.1794192,83628.0,83627.0,0.0598049]
[1741828884408,0.1784192,83628.0,83627.0,0.0598049]
[1741828884613,0.0588057,83628.0,83627.0,0.0598049]
[1741828884809,0.0608057,83628.0,83627.0,0.0598049]
[1741828885220,0.006,83628.0,83627.0,0.0598049]
[1741828885628,0.17711758,83652.0,83627.0,0.0598049]
[1741828885629,0.1195899,83643.0,83635.0,0.1196006]
[1741828885831,0.0597933,83645.0,83635.0,0.2407606]
[1741828886017,0.1195915,83642.0,83635.0,0.2407606]
[1741828886217,0.059792,83647.0,83635.0,0.3505606]
[1741828886418,0.11977855,83636.0,83635.0,0.3505606]
[1741828886724,0.00017935,83636.0,83635.0,0.3505606]
[1741828887623,0.00017935,83636.0,83635.0,0.36223454]
[1741828887826,0.00017935,83636.0,83635.0,0.36423454]
[1741828888323,0.11977855,83636.0,83635.0,0.23496]
[1741828888528,0.17567855,83636.0,83635.0,0.3535606]
[1741828888917,0.11977855,83636.0,83635.0,0.3525606]
[1741828889235,0.11977855,83636.0,83635.0,0.2304006]
[1741828889725,0.12277855,83636.0,83635.0,0.2294006]
[1741828890528,0.12277855,83636.0,83635.0,0.1098]
[1741828890721,0.17517855,83636.0,83635.0,0.1098]
[1741828891818,0.17517855,83636.0,83635.0,0.2294006]
[1741828892022,0.17617855,83636.0,83635.0,0.2294006]
[1741828892728,0.12377855,83636.0,83635.0,0.2294006]
[1741828892934,0.11977855,83636.0,83635.0,0.2294006]
[1741828893134,0.12377855,83636.0,83635.0,0.2294006]
[1741828894732,0.11977855,83636.0,83635.0,0.2294006]
[1741828895326,0.11977855,83636.0,83635.0,0.1098]
[1741828896334,0.11977855,83636.0,83620.0,0.01192745]
[1741828896335,0.1196206,83621.0,83620.0,0.01192745]
[1741828896538,0.1196206,83621.0,83619.0,0.0524]
[1741828896732,0.1196206,83621.0,83620.0,0.1196221]
[1741828897329,0.1719144,83626.0,83625.0,0.1196149]
[1741828897729,0.1196144,83626.0,83625.0,0.1196149]
[1741828898128,0.1196144,83626.0,83625.0,0.2299149]
[1741828898726,0.0564,83634.0,83625.0,0.1103]
[1741828898933,0.1196056,83632.0,83631.0,0.1196049]
[1741828899638,0.1196056,83632.0,83631.0,0.2255049]
[1741828900843,0.2275056,83632.0,83631.0,0.2255049]
[1741828901038,0.1735056,83632.0,83631.0,0.2255049]
[1741828901546,0.1755056,83632.0,83631.0,0.2255049]
[1741828901731,0.2295056,83632.0,83631.0,0.1059]
[1741828901926,0.2325056,83632.0,83631.0,0.1059]
[1741828902138,0.2325056,83632.0,83631.0,0.2255063]
[1741828902346,0.1785056,83632.0,83631.0,0.2255063]
[1741828903631,0.2351056,83632.0,83631.0,0.2255063]
[1741828905734,0.1785056,83632.0,83631.0,0.2255063]
[1741828911936,0.2303056,83632.0,83631.0,0.2255063]
[1741828913146,0.2303056,83632.0,83631.0,0.1059]
[1741828913345,0.1196206,83621.0,83618.0,0.2853405]
[1741828913642,0.1196235,83619.0,83618.0,0.2853405]
[1741828914152,0.1754235,83619.0,83618.0,0.4049654]
[1741828914648,0.1754235,83619.0,83618.0,0.1196249]
[1741828914852,0.2317235,83619.0,83618.0,0.1766249]
[1741828915453,0.2317235,83619.0,83618.0,0.1746249]
[1741828915638,0.2317235,83619.0,83618.0,0.1786249]
[1741828916347,0.0528,83629.0,83618.0,0.059]
[1741828916348,0.0598075,83628.0,83618.0,0.059]
[1741828916533,0.1794277,83626.0,83625.0,0.0598069]
[1741828917432,0.1196235,83619.0,83618.0,0.004]
[1741828917740,0.1196235,83619.0,83618.0,0.0571]
[1741828917946,0.1196235,83619.0,83618.0,0.1747249]
[1741828918740,0.1196235,83619.0,83618.0,0.1767249]
[1741828919141,0.1196235,83619.0,83618.0,0.1747249]
[1741828919847,0.1196235,83619.0,83618.0,0.1767249]
[1741828920753,0.13155571,83619.0,83618.0,0.1767249]
[1741828920952,0.1196235,83619.0,83618.0,0.1767249]
[1741828922142,0.1196235,83619.0,83618.0,0.0571]
[1741828922347,0.07170361,83621.0,83613.0,0.00012055]
[1741828922646,0.1196306,83614.0,83613.0,0.00012055]
[1741828923355,0.1196306,83614.0,83613.0,0.11975265]
[1741828923647,0.2258306,83614.0,83613.0,0.11975265]
[1741828923855,0.2258306,83614.0,83613.0,0.12375265]
[1741828924350,0.1717306,83614.0,83613.0,0.12375265]
[1741828924953,0.1717306,83614.0,83613.0,0.12675265]
[1741828927755,0.1196306,83614.0,83613.0,0.12675265]
[1741828929055,0.1745306,83614.0,83613.0,0.12675265]
[1741828929257,0.1745306,83614.0,83613.0,0.00712055]
[1741828929556,0.2266306,83614.0,83613.0,0.00712055]
[1741828931055,0.107,83614.0,83600.0,0.1]
[1741828931255,0.1196449,83604.0,83603.0,0.0555]
[1741828931455,0.1196492,83601.0,83600.0,0.1]
[1741828932248,0.1196492,83601.0,83600.0,0.107]
[1741828933454,0.1196492,83601.0,83600.0,0.2162]
[1741828933648,0.1126492,83601.0,83600.0,0.2162]
[1741828933960,0.12569913,83601.0,83600.0,0.107]
[1741828934456,0.12669913,83601.0,83600.0,0.114]
[1741828935360,0.1196593,83594.0,83593.0,0.0541]
[1741828935659,0.0598287,83596.0,83588.0,0.0569]
[1741828935958,0.1728253,83600.0,83587.0,0.00179404]
[1741828935959,0.1196678,83588.0,83587.0,0.00179404]
[1741828936658,0.1058,83589.0,83576.0,0.12112]
[1741828936854,0.1196822,83578.0,83577.0,0.1113]
[1741828937254,0.1196822,83578.0,83574.0,0.2859805]
[1741828937255,0.1196865,83575.0,83574.0,0.2859805]
[1741828937471,0.1196865,83575.0,83574.0,0.2853405]
[1741828937648,0.1196865,83575.0,83574.0,0.4050284]
[1741828938053,0.1176865,83575.0,83574.0,0.4050284]
[1741828938460,0.01090028,83575.0,83574.0,0.2251879]
[1741828938868,0.13158678,83575.0,83574.0,0.2271879]
[1741828939964,0.12658678,83575.0,83574.0,0.2271879]
[1741828940165,0.12758678,83575.0,83574.0,0.2271879]
[1741828940665,0.12658678,83575.0,83574.0,0.2271879]
[1741828940965,0.12758678,83575.0,83574.0,0.2251879]
[1741828941167,0.12958678,83575.0,83574.0,0.2251879]
[1741828941462,0.13058678,83575.0,83574.0,0.2251879]
[1741828941868,0.13258678,83575.0,83574.0,0.2251879]
[1741828942255,0.14380637,83575.0,83574.0,0.2251879]
[1741828942455,0.14380637,83575.0,83574.0,0.1055]
[1741828942651,0.14380637,83575.0,83574.0,0.0544]
[1741828942866,0.14380637,83575.0,83560.0,0.00881322]
[1741828942867,0.1196922,83571.0,83570.0,0.0532]
[1741828943260,0.1197008,83565.0,83564.0,0.0523]
[1741828943460,0.13862948,83565.0,83555.0,0.0523]
[1741828943670,0.1197122,83557.0,83556.0,0.0528]
[1741828943857,0.1197137,83556.0,83555.0,0.0532]
[1741828944166,0.24534238,83556.0,83555.0,0.0532]
[1741828944558,0.25656197,83556.0,83555.0,0.0532]
[1741828944951,0.25656197,83556.0,83555.0,0.106]
[1741828946369,0.14986197,83556.0,83555.0,0.2257151]
[1741828946565,0.20116197,83556.0,83555.0,0.2257151]
[1741828946870,0.20116197,83556.0,83555.0,0.106]
[1741828947069,0.25036197,83556.0,83555.0,0.106]
[1741828947265,0.25036197,83556.0,83555.0,0.2257151]
[1741828947454,0.23143329,83556.0,83555.0,0.2257151]
[1741828947653,0.15025186,83556.0,83555.0,0.2257151]
[1741828947859,0.15025186,83556.0,83555.0,0.106]
[1741828948157,0.25205186,83556.0,83555.0,0.2257151]
[1741828949061,0.22059331,83556.0,83555.0,0.2257151]
[1741828949567,0.27109331,83556.0,83555.0,0.2257151]
[1741828950069,0.27109331,83556.0,83555.0,0.106]
[1741828950272,0.179622,83536.0,83535.0,0.1197365]
[1741828950569,0.0598576,83555.0,83535.0,0.1197365]
[1741828950570,0.0598693,83539.0,83538.0,0.1197395]
[1741828950765,0.08021661,83539.0,83538.0,0.1197395]
[1741828951165,0.08021661,83539.0,83535.0,0.13529289]
[1741828951367,0.07294731,83538.0,83535.0,0.13529289]
[1741828951570,0.001,83536.0,83535.0,0.25503379]
[1741828951866,0.01372795,83536.0,83535.0,0.24203379]
[1741828952055,0.15383497,83536.0,83535.0,0.2299809]
[1741828952565,0.03209267,83536.0,83535.0,0.2299809]
[1741828952766,0.15183497,83536.0,83535.0,0.24201228]
[1741828952955,0.15183497,83536.0,83535.0,0.11024]
[1741828953159,0.1197466,83533.0,83532.0,0.053]
[1741828953361,0.14011132,83533.0,83532.0,0.053]
[1741828953661,0.1197638,83521.0,83519.0,1.39028]
[1741828953855,0.14012852,83521.0,83520.0,0.12643234]
[1741828954465,0.1597662,83521.0,83520.0,0.17973234]
[1741828954870,0.1607662,83521.0,83520.0,0.17973234]
[1741828955064,0.2141662,83521.0,83520.0,0.17973234]
[1741828955368,0.2672662,83521.0,83520.0,0.05996704]
[1741828955762,0.2672662,83521.0,83520.0,0.23163234]
[1741828956166,5.2672662,83521.0,83520.0,0.0533]
[1741828956368,0.1197696,83517.0,83516.0,0.00875651]
[1741828956578,0.14761934,83517.0,83516.0,0.00875651]
[1741828957265,0.17994986,83517.0,83516.0,0.06065651]
[1741828957663,0.28344986,83517.0,83516.0,0.06065651]
[1741828958275,0.16468026,83517.0,83516.0,0.18042751]
[1741828958972,0.28444986,83517.0,83516.0,0.18042751]
[1741828959471,0.28444986,83517.0,83516.0,0.23362751]
[1741828959877,0.16568026,83517.0,83516.0,0.23362751]
[1741828960174,0.28544986,83517.0,83516.0,0.23362751]
[1741828960671,0.28544986,83517.0,83516.0,0.11385651]
[1741828960870,0.28544986,83517.0,83516.0,0.23362751]
[1741828961271,0.28544986,83517.0,83516.0,0.18042751]
[1741828963176,0.23634986,83517.0,83516.0,0.18042751]
[1741828963678,0.18194986,83517.0,83516.0,0.18042751]
[1741828964162,0.18194986,83517.0,83516.0,0.19256238]
[1741828964367,0.18194986,83517.0,83516.0,0.06065651]
[1741828964565,0.19466937,83517.0,83516.0,0.18042751]
[1741828964775,0.15410012,83517.0,83516.0,0.00875651]
[1741828964979,0.1197724,83515.0,83514.0,0.00652843]
[1741828965277,0.16037689,83515.0,83514.0,0.00652843]
[1741828965668,0.1197767,83512.0,83511.0,0.0535]
[1741828965868,0.16038119,83512.0,83511.0,0.0535]
[1741828966077,0.16038119,83512.0,83511.0,0.1732782]
[1741828966278,0.16038119,83512.0,83511.0,0.1043]
[1741828966582,0.21187586,83512.0,83511.0,0.2240782]
[1741828967377,0.08042127,83512.0,83511.0,0.2240782]
[1741828967576,0.20019797,83512.0,83511.0,0.2240782]
[1741828967878,0.20319797,83512.0,83511.0,0.2240782]
[1741828968072,0.19571171,83512.0,83511.0,0.2240782]
[1741828969584,0.07593501,83512.0,83511.0,0.2240782]
[1741828969782,0.18822572,83512.0,83511.0,0.2240782]
[1741828971069,0.18622572,83512.0,83511.0,0.2240782]
[1741828971281,0.06644902,83512.0,83511.0,0.2240782]
[1741828971477,0.06644902,83512.0,83511.0,0.4840782]
[1741828971783,0.06644902,83512.0,83511.0,0.2240782]
[1741828972479,0.18301459,83512.0,83511.0,0.2240782]
[1741828972867,0.06223789,83512.0,83511.0,0.2240782]
[1741828973081,0.10624459,83541.0,83524.0,0.1197595]
[1741828973280,0.10624459,83541.0,83531.0,0.1197495]
[1741828973281,0.1048,83534.0,83531.0,0.1197495]
[1741828973576,0.1048,83534.0,83531.0,0.1797495]
[1741828973782,0.0504,83534.0,83531.0,0.1197495]
[1741828974183,0.10624459,83541.0,83531.0,0.39184641]
[1741828974386,0.00017956,83540.0,83539.0,0.119738]
[1741828974684,0.00017956,83540.0,83539.0,0.244098]
[1741828976476,0.00017956,83540.0,83539.0,0.314098]
[1741828979278,0.0504,83544.0,83543.0,0.1197323]
[1741828979786,0.1004,83544.0,83543.0,0.3597323]
[1741828980087,0.1004,83544.0,83543.0,0.1197323]
[1741828980585,0.2221309,83544.0,83543.0,0.1197323]
[1741828980987,0.2221309,83544.0,83543.0,0.2436123]
[1741828983287,0.2221309,83544.0,83543.0,0.12388]
[1741828983588,0.0598681,83541.0,83531.0,0.07197141]
[1741828983779,0.1048,83540.0,83539.0,0.243658]
[1741828983981,0.002,83544.0,83539.0,0.12392]
[1741828984181,0.002,83544.0,83543.0,0.1197323]
[1741828984884,0.07137456,83544.0,83543.0,0.1797323]
[1741828985193,0.01348212,83544.0,83543.0,0.1797323]
[1741828985390,0.01357657,83544.0,83543.0,0.1997323]
[1741828985686,0.00017956,83552.0,83551.0,0.1197208]
[1741828985889,0.0115663,83552.0,83551.0,0.1197208]